fUSD/lending_fUSD_20240220
["ID","MTS","AMOUNT","RATE_DAILY","PERIOD"]
[314612915,1708451440849,-500.0,0.00047123,30]
[314612916,1708451440859,-500.0,0.00047123,30]
[314612917,1708451440868,-500.0,0.00047123,30]
[314612918,1708451440877,-500.0,0.00047123,30]
[314612919,1708451440886,-500.0,0.00047123,30]
[314612920,1708451440895,-500.0,0.00047123,30]
[314612921,1708451440904,-500.0,0.00047123,30]
[314612922,1708451440913,-269.11138909,0.00047123,30]
[314612923,1708451441032,-449.82861091,0.00047123,30]
[314612924,1708451441043,-500.0,0.00047123,30]
[314612925,1708451441052,-346.07616013,0.00047123,30]
[314612926,1708451441061,-500.0,0.00047123,30]
[314612927,1708451441071,-7123.36,0.00047123,30]
[314612928,1708451441080,-500.0,0.00047123,30]
[314612929,1708451441090,-552.57,0.00047123,30]
[314612930,1708451441099,-347.60744858,0.00047123,30]
[314612931,1708451441108,-641.77554537,0.00047123,30]
[314612932,1708451441118,-1374.27,0.00047123,30]
[314612933,1708451441127,-624.37,0.00047123,30]
[314612934,1708451441136,-500.0,0.00047123,30]
[314612935,1708451441145,-500.0,0.00047123,30]
[314612936,1708451441155,-500.0,0.00047123,30]
[314612937,1708451441164,-500.0,0.00047123,30]
[314612938,1708451441173,-787.19,0.00047123,30]
[314612939,1708451441183,-488.83146558,0.00047123,30]
[314612940,1708451441193,-500.0,0.00047123,30]
[314612941,1708451441203,-500.0,0.00047123,30]
[314612942,1708451441213,-555.41,0.00047123,30]
[314612943,1708451441223,-812.49432752,0.00047123,30]
[314612944,1708451441350,-541.43,0.00046575,30]
[314612945,1708451441360,-1143.21567248,0.00047123,30]
[314612946,1708451441369,-500.0,0.00047123,30]
[314612947,1708451441378,-500.0,0.00047123,7]
[314612948,1708451441388,-500.0,0.00047123,30]
[314612949,1708451441397,-500.0,0.00047123,30]
[314612950,1708451441407,-579.77,0.00047123,30]
[314612951,1708451441416,-500.0,0.00047123,14]
[314612952,1708451441425,-500.0,0.00047123,30]
[314612953,1708451441435,-500.0,0.00047123,30]
[314612954,1708451441444,-333.81,0.00047178,2]
[314612955,1708451441453,-300.0,0.0004726,2]
[314612956,1708451441462,-501.23,0.000473,5]
[314612957,1708451441471,-501.23,0.000473,5]
[314612958,1708451441480,-501.23,0.000473,5]
[314612959,1708451441490,-501.23,0.000473,5]
[314612960,1708451441499,-501.23,0.000473,5]
[314612961,1708451441508,-501.23,0.000473,5]
[314612962,1708451441517,-501.23,0.000473,5]
[314612963,1708451441526,-501.23,0.000473,5]
[314612964,1708451441536,-501.23,0.000473,5]
[314612965,1708451441548,-501.23,0.000473,5]
[314612966,1708451441558,-501.23,0.000473,5]
[314612967,1708451441567,-501.23,0.000473,5]
[314612968,1708451441576,-501.23,0.000473,5]
[314612969,1708451441585,-501.23,0.000473,5]
[314612970,1708451441595,-501.23,0.000473,5]
[314612971,1708451441604,-501.23,0.000473,5]
[314612972,1708451441614,-501.23,0.000473,5]
[314612973,1708451441623,-501.23,0.000473,5]
[314612974,1708451441634,-501.23,0.000473,5]
[314612975,1708451441643,-501.23,0.000473,5]
[314612976,1708451441652,-500.0,0.00047397,30]
[314612977,1708451441661,-512.98175691,0.00047397,30]
[314612978,1708451441670,-334.21144231,0.00047397,30]
[314612979,1708451441682,-500.0,0.00047397,30]
[314612980,1708451441691,-500.0,0.00047397,30]
[314612981,1708451441699,-653.11,0.00047397,30]
[314612982,1708451441709,-500.0,0.00047397,30]
[314612983,1708451441718,-500.0,0.00047397,30]
[314612984,1708451441728,-500.0,0.00047397,30]
[314612985,1708451441737,-500.0,0.00047397,30]
[314612986,1708451441747,-500.0,0.00047397,30]
[314612987,1708451441756,-500.0,0.00047397,30]
[314612988,1708451441765,-228.03,0.00047397,30]
[314612989,1708451441775,-500.0,0.00047397,30]
[314612990,1708451441784,-210.69,0.00047397,30]
[314612991,1708451441796,-500.0,0.00047397,30]
[314612992,1708451441804,-500.0,0.00047397,30]
[314612993,1708451441813,-500.0,0.00047397,30]
[314612994,1708451441822,-500.0,0.00047397,30]
[314612996,1708451441831,-500.0,0.00047397,30]
[314612998,1708451441841,-537.53,0.00047397,30]
[314613000,1708451441850,-500.0,0.00047397,30]
[314613002,1708451441858,-500.0,0.00047397,30]
[314613004,1708451441868,-500.0,0.00047397,30]
[314613006,1708451441877,-500.0,0.00047397,30]
[314613008,1708451441885,-500.0,0.00047397,30]
[314613010,1708451441894,-500.0,0.00047397,30]
[314613012,1708451441903,-500.0,0.00047397,30]
[314613013,1708451441911,-500.0,0.00047397,30]
[314613016,1708451441920,-500.0,0.00047397,30]
[314613017,1708451441930,-500.0,0.00047397,30]
[314613018,1708451441939,-500.0,0.00047397,30]
[314613019,1708451441949,-500.0,0.00047397,30]
[314613020,1708451441958,-500.0,0.00047397,30]
[314613021,1708451441967,-500.0,0.00047397,30]
[314613022,1708451441976,-500.0,0.00047397,30]
[314613023,1708451441985,-500.0,0.00047397,30]
[314613024,1708451441994,-500.0,0.00047397,30]
[314613025,1708451442002,-500.0,0.00047397,30]
[314613026,1708451442011,-500.0,0.00047397,30]
[314613027,1708451442020,-500.0,0.00047397,30]
[314613028,1708451442029,-500.0,0.00047397,30]
[314613029,1708451442038,-500.0,0.00047397,30]
[314613030,1708451442047,-500.0,0.00047397,30]
[314613031,1708451442056,-2372.15,0.00047397,30]
[314613032,1708451442066,-500.0,0.00047397,30]
[314613033,1708451442074,-500.0,0.00047397,30]
[314613034,1708451442083,-608.6,0.00047397,30]
[314613035,1708451442092,-500.0,0.00047397,30]
[314613036,1708451442101,-500.0,0.00047397,30]
[314613037,1708451442112,-500.0,0.00047397,30]
[314613038,1708451442121,-500.0,0.00047397,30]
[314613039,1708451442130,-500.0,0.00047397,30]
[314613040,1708451442140,-500.0,0.00047397,30]
[314613041,1708451442150,-500.0,0.00047397,30]
[314613042,1708451442161,-299.88748456,0.00047397,30]
[314613043,1708451442172,-500.0,0.00047397,30]
[314613044,1708451442184,-500.0,0.00047397,30]
[314613045,1708451442194,-500.0,0.00047397,30]
[314613046,1708451442205,-500.0,0.00047397,30]
[314613047,1708451442215,-500.0,0.00047397,30]
[314613048,1708451442226,-500.0,0.00047397,30]
[314613049,1708451442236,-500.0,0.00047397,30]
[314613050,1708451442246,-500.0,0.00047397,30]
[314613051,1708451442256,-500.0,0.00047397,30]
[314613052,1708451442267,-500.0,0.00047397,30]
[314613053,1708451442277,-3850.79,0.00047397,30]
[314613054,1708451442287,-595.68,0.00047397,30]
[314613055,1708451442299,-500.0,0.00047397,30]
[314613056,1708451442309,-500.0,0.00047397,30]
[314613057,1708451442319,-751.06,0.00047397,30]
[314613058,1708451442330,-514.4,0.00047397,30]
[314613059,1708451442340,-500.0,0.00047397,30]
[314613060,1708451442350,-500.0,0.00047397,30]
[314613061,1708451442360,-500.0,0.00047397,30]
[314613062,1708451442370,-945.17,0.00047397,30]
[314613063,1708451442379,-500.0,0.00047397,30]
[314613064,1708451442389,-500.0,0.00047397,30]
[314613065,1708451442400,-378.94097933,0.00047397,30]
[314613066,1708451442410,-740.46,0.00047397,30]
[314613067,1708451442420,-500.0,0.00047397,30]
[314613068,1708451442429,-500.0,0.00047397,30]
[314613069,1708451442439,-1034.86,0.00047397,30]
[314613070,1708451442449,-630.3,0.00047397,30]
[314613071,1708451442458,-500.0,0.00047397,30]
[314613072,1708451442467,-500.0,0.00047397,30]
[314613073,1708451442478,-500.0,0.00047397,30]
[314613074,1708451442487,-500.0,0.00047397,30]
[314613075,1708451442497,-500.0,0.00047397,30]
[314613076,1708451442507,-500.0,0.00047397,30]
[314613077,1708451442517,-718.94,0.00047397,30]
[314613078,1708451442526,-500.0,0.00047397,30]
[314613079,1708451442536,-500.0,0.00047397,30]
[314613080,1708451442550,-7123.36,0.00047397,30]
[314613081,1708451442560,-500.0,0.00047397,30]
[314613082,1708451442570,-552.57,0.00047397,30]
[314613083,1708451442580,-1374.27,0.00047397,30]
[314613084,1708451442589,-624.37,0.00047397,30]
[314613085,1708451442599,-500.0,0.00047397,30]
[314613086,1708451442609,-500.0,0.00047397,30]
[314613087,1708451442619,-500.0,0.00047397,30]
[314613088,1708451442629,-500.0,0.00047397,30]
[314613089,1708451442643,-787.19,0.00047397,30]
[314613090,1708451442654,-500.0,0.00047397,30]
[314613091,1708451442667,-500.0,0.00047397,30]
[314613092,1708451442677,-555.41,0.00047397,30]
[314613093,1708451442687,-1955.71,0.00047397,30]
[314613094,1708451442697,-595.76454606,0.00047397,30]
[314613095,1708451442707,-500.0,0.00047397,7]
[314613096,1708451442716,-500.0,0.00047397,30]
[314613097,1708451442728,-500.0,0.00047397,30]
[314613098,1708451442737,-579.77,0.00047397,30]
[314613099,1708451442747,-500.0,0.00047397,14]
[314613100,1708451442758,-500.0,0.00047397,30]
[314613101,1708451442768,-500.0,0.00047397,30]
[314613102,1708451442778,-156.0,0.00047475,30]
[314613103,1708451442787,-154.0,0.00047475,30]
[314613104,1708451442798,-1500.0,0.000475,30]
[314613105,1708451442808,-1129.0,0.0004752,30]
[314613106,1708451442818,-160.84,0.00047551,2]
[314613107,1708451442828,-527.37252188,0.00047571,2]
[314613108,1708451442837,-189.0870268,0.00047571,2]
[314613109,1708451442848,-34111.32902646,0.00047661,11]
[314613110,1708451442936,-48979.99006274,0.00047661,11]
[314613111,1708451442945,-500.0,0.00047671,30]
[314613112,1708451442955,-500.0,0.00047671,30]
[314613113,1708451442965,-500.0,0.00047671,30]
[314613114,1708451442974,-653.11,0.00047671,30]
[314613115,1708451442984,-500.0,0.00047671,30]
[314613116,1708451442993,-500.0,0.00047671,30]
[314613117,1708451443003,-500.0,0.00047671,30]
[314613118,1708451443013,-500.0,0.00047671,30]
[314613119,1708451443023,-500.0,0.00047671,30]
[314613120,1708451443033,-500.0,0.00047671,30]
[314613121,1708451443044,-500.0,0.00047671,30]
[314613122,1708451443053,-500.0,0.00047671,30]
[314613123,1708451443063,-500.0,0.00047671,30]
[314613125,1708451443073,-500.0,0.00047671,30]
[314613126,1708451443083,-313.9168752,0.00047671,30]
[314613127,1708451443095,-186.0831248,0.00047671,30]
[314613128,1708451443104,-500.0,0.00047671,30]
[314613129,1708451443114,-500.0,0.00047671,30]
[314613130,1708451443123,-500.0,0.00047671,30]
[314613131,1708451443133,-646.18359789,0.00047671,30]
[314613132,1708451443143,-500.0,0.00047671,30]
[314613133,1708451443153,-365.13086579,0.00047671,30]
[314613134,1708451443163,-409.47990206,0.00047671,30]
[314613135,1708451443178,-90.52009794,0.00047671,30]
[314613136,1708451443187,-500.0,0.00047671,30]
[314613137,1708451443197,-500.0,0.00047671,30]
[314613138,1708451443206,-500.0,0.00047671,30]
[314613139,1708451443216,-500.0,0.00047671,30]
[314613140,1708451443225,-500.0,0.00047671,30]
[314613141,1708451443235,-244.89443419,0.00047671,30]
[314613142,1708451443244,-500.0,0.00047671,30]
[314613143,1708451443254,-500.0,0.00047671,30]
[314613144,1708451443263,-500.0,0.00047671,30]
[314613145,1708451443273,-500.0,0.00047671,30]
[314613146,1708451443282,-500.0,0.00047671,30]
[314613147,1708451443292,-500.0,0.00047671,30]
[314613148,1708451443303,-500.0,0.00047671,30]
[314613149,1708451443313,-500.0,0.00047671,30]
[314613150,1708451443322,-500.0,0.00047671,30]
[314613151,1708451443331,-2372.15,0.00047671,30]
[314613152,1708451443341,-500.0,0.00047671,30]
[314613153,1708451443350,-500.0,0.00047671,30]
[314613154,1708451443359,-608.6,0.00047671,30]
[314613155,1708451443369,-500.0,0.00047671,30]
[314613156,1708451443379,-500.0,0.00047671,30]
[314613157,1708451443389,-500.0,0.00047671,30]
[314613158,1708451443398,-500.0,0.00047671,30]
[314613159,1708451443407,-500.0,0.00047671,30]
[314613160,1708451443418,-436.6200142,0.00047671,30]
[314613161,1708451443428,-500.0,0.00047671,30]
[314613162,1708451443437,-500.0,0.00047671,30]
[314613163,1708451443446,-500.0,0.00047671,30]
[314613164,1708451443456,-500.0,0.00047671,30]
[314613165,1708451443465,-500.0,0.00047671,30]
[314613166,1708451443475,-500.0,0.00047671,30]
[314613167,1708451443484,-500.0,0.00047671,30]
[314613168,1708451443494,-500.0,0.00047671,30]
[314613169,1708451443503,-500.0,0.00047671,30]
[314613170,1708451443512,-500.0,0.00047671,30]
[314613171,1708451443522,-3850.79,0.00047671,30]
[314613172,1708451443531,-595.68,0.00047671,30]
[314613173,1708451443541,-500.0,0.00047671,30]
[314613174,1708451443551,-500.0,0.00047671,30]
[314613175,1708451443561,-751.06,0.00047671,30]
[314613176,1708451443570,-514.4,0.00047671,30]
[314613177,1708451443579,-649.18436633,0.00047671,30]
[314613178,1708451443589,-500.0,0.00047671,30]
[314613179,1708451443598,-500.0,0.00047671,30]
[314613180,1708451443608,-945.17,0.00047671,30]
[314613181,1708451443617,-500.0,0.00047671,30]
[314613182,1708451443627,-500.0,0.00047671,30]
[314613183,1708451443639,-740.46,0.00047671,30]
[314613184,1708451443648,-500.0,0.00047671,30]
[314613185,1708451443658,-500.0,0.00047671,30]
[314613186,1708451443667,-1034.86,0.00047671,30]
[314613187,1708451443679,-630.3,0.00047671,30]
[314613188,1708451443688,-500.0,0.00047671,30]
[314613189,1708451443698,-500.0,0.00047671,30]
[314613190,1708451443707,-500.0,0.00047671,30]
[314613191,1708451443717,-500.0,0.00047671,30]
[314613192,1708451443726,-500.0,0.00047671,30]
[314613193,1708451443735,-500.0,0.00047671,30]
[314613194,1708451443745,-718.94,0.00047671,30]
[314613195,1708451443755,-500.0,0.00047671,30]
[314613196,1708451443765,-500.0,0.00047671,30]
[314613197,1708451443774,-4504.18055498,0.00047671,30]
[314613198,1708451443793,-2189.35992318,0.00047671,30]
[314613199,1708451443806,-429.81952184,0.00047671,30]
[314613200,1708451443816,-428.93439961,0.00047671,30]
[314613201,1708451443825,-552.57,0.00047671,30]
[314613202,1708451443835,-1374.27,0.00047671,30]
[314613203,1708451443845,-624.37,0.00047671,30]
[314613204,1708451443854,-522.44,0.00047671,30]
[314613205,1708451443864,-500.0,0.00047671,30]
[314613206,1708451443874,-500.0,0.00047671,30]
[314613207,1708451443883,-500.0,0.00047671,30]
[314613208,1708451443892,-787.19,0.00047671,30]
[314613209,1708451443901,-500.0,0.00047671,30]
[314613210,1708451443910,-555.41,0.00047671,30]
[314613211,1708451443919,-1955.71,0.00047671,30]
[314613212,1708451443930,-625.6105374,0.00047671,30]
[314613213,1708451443939,-500.0,0.00047671,7]
[314613214,1708451443949,-500.0,0.00047671,30]
[314613215,1708451443958,-500.0,0.00047671,30]
[314613216,1708451443968,-579.77,0.00047671,30]
[314613217,1708451443977,-500.0,0.00047671,14]
[314613218,1708451443986,-500.0,0.00047671,30]
[314613219,1708451443995,-500.0,0.00047671,30]
[314613220,1708451444004,-6890.00165564,0.00047718,2]
[314613221,1708451444013,-156.0,0.00047723,30]
[314613222,1708451444023,-2692.0,0.00047727,2]
[314613223,1708451444032,-843.0,0.00047727,2]
[314613224,1708451444042,-736.922,0.00047727,2]
[314613225,1708451444052,-217.339,0.00047727,2]
[314613226,1708451444061,-1231.0,0.00047727,2]
[314613227,1708451444070,-602.952,0.00047727,2]
[314613228,1708451444080,-1256.0,0.00047727,2]
[314613229,1708451444089,-430.0,0.00047727,2]
[314613230,1708451444098,-276.0,0.00047727,2]
[314613231,1708451444108,-1006.0,0.00047727,2]
[314613232,1708451444118,-859.0,0.00047727,2]
[314613233,1708451444128,-343.0,0.00047727,2]
[314613234,1708451444138,-2888.0,0.00047727,2]
[314613235,1708451444148,-1138.0,0.00047727,2]
[314613236,1708451444158,-321.0,0.00047727,2]
[314613237,1708451444169,-150.0,0.00047727,2]
[314613238,1708451444370,-454.0,0.00047727,2]
[314613239,1708451444380,-3857.159,0.00047727,2]
[314613240,1708451444389,-1284.874,0.00047727,2]
[314613241,1708451444398,-2292.0,0.00047727,2]
[314613242,1708451444408,-2931.0,0.00047727,2]
[314613243,1708451444417,-152.723,0.00047727,2]
[314613244,1708451444427,-8174.0,0.00047727,2]
[314613245,1708451444436,-182.194,0.00047727,2]
[314613246,1708451444445,-150.0,0.00047727,2]
[314613247,1708451444455,-518.412,0.00047727,2]
[314613248,1708451444464,-153.23674788,0.0004778,36]
[314613249,1708451444474,-1973.31985528,0.000478,30]
[314613250,1708451444495,-3026.68014472,0.000478,30]
[314613251,1708451444505,-525.30590397,0.00047869,5]
[314613252,1708451444514,-6667.61235131,0.0004787,11]
[314613253,1708451444526,-45445.95937774,0.0004787,11]
[314613254,1708451444538,-13703.60735615,0.0004787,11]
[314613255,1708451444551,-2924.53283286,0.0004787,11]
[314613256,1708451444563,-2221.670679,0.0004787,11]
[314613257,1708451444575,-10345.73891495,0.0004787,11]
[314613258,1708451444587,-1782.19757719,0.0004787,11]
[314613259,1708451444596,-210.0,0.0004788,30]
[314613260,1708451444606,-210.0,0.0004788,30]
[314613261,1708451444616,-349.80242281,0.0004788,30]
[314613262,1708451444633,-2526.94647169,0.0004788,30]
[314613263,1708451444649,-5559.8885145,0.0004788,30]
[314613264,1708451444659,-58093.017988,0.0004788,30]
[314613265,1708451444669,-152.266667,0.00047926,30]
[314613266,1708451444681,-175.176023,0.00047926,30]
[314613267,1708451444690,-243.146476,0.00047926,30]
[314613268,1708451444699,-500.0,0.00047945,30]
[314613269,1708451444708,-500.0,0.00047945,30]
[314613270,1708451444718,-500.0,0.00047945,30]
[314613271,1708451444728,-500.0,0.00047945,30]
[314613272,1708451444737,-500.0,0.00047945,30]
[314613273,1708451444746,-500.0,0.00047945,30]
[314613274,1708451444757,-500.0,0.00047945,30]
[314613275,1708451444766,-500.0,0.00047945,30]
[314613276,1708451444775,-653.11,0.00047945,30]
[314613277,1708451444785,-500.0,0.00047945,30]
[314613278,1708451444797,-500.0,0.00047945,30]
[314613279,1708451444806,-500.0,0.00047945,30]
[314613280,1708451444816,-450.0,0.00047945,7]
[314613281,1708451444825,-500.0,0.00047945,30]
[314613282,1708451444835,-500.0,0.00047945,30]
[314613283,1708451444844,-645.71150496,0.00047945,30]
[314613284,1708451444853,-500.0,0.00047945,30]
[314613285,1708451444863,-500.0,0.00047945,30]
[314613286,1708451444873,-500.0,0.00047945,30]
[314613287,1708451444882,-245.27062611,0.00047945,30]
[314613288,1708451444892,-500.0,0.00047945,30]
[314613289,1708451444901,-500.0,0.00047945,30]
[314613290,1708451444911,-500.0,0.00047945,30]
[314613291,1708451444920,-500.0,0.00047945,30]
[314613292,1708451444929,-422.03,0.00047945,30]
[314613293,1708451444939,-626.67511093,0.00047945,30]
[314613294,1708451444948,-500.0,0.00047945,30]
[314613295,1708451444957,-500.0,0.00047945,30]
[314613296,1708451444966,-500.0,0.00047945,30]
[314613297,1708451444976,-500.0,0.00047945,30]
[314613298,1708451444985,-500.0,0.00047945,30]
[314613299,1708451444995,-500.0,0.00047945,30]
[314613300,1708451445004,-500.0,0.00047945,30]
[314613301,1708451445014,-500.0,0.00047945,30]
[314613302,1708451445023,-500.0,0.00047945,30]
[314613303,1708451445032,-500.0,0.00047945,30]
[314613304,1708451445043,-500.0,0.00047945,30]
[314613305,1708451445052,-2372.15,0.00047945,30]
[314613306,1708451445061,-500.0,0.00047945,30]
[314613307,1708451445072,-500.0,0.00047945,30]
[314613308,1708451445081,-608.6,0.00047945,30]
[314613309,1708451445090,-500.0,0.00047945,30]
[314613310,1708451445099,-500.0,0.00047945,30]
[314613311,1708451445109,-637.14260754,0.00047945,30]
[314613312,1708451445119,-394.6396922,0.00047945,30]
[314613313,1708451445128,-500.0,0.00047945,30]
[314613314,1708451445137,-500.0,0.00047945,30]
[314613315,1708451445146,-500.0,0.00047945,30]
[314613316,1708451445155,-500.0,0.00047945,30]
[314613317,1708451445165,-500.0,0.00047945,30]
[314613318,1708451445175,-500.0,0.00047945,30]
[314613319,1708451445184,-500.0,0.00047945,30]
[314613320,1708451445194,-500.0,0.00047945,30]
[314613321,1708451445204,-500.0,0.00047945,30]
[314613322,1708451445214,-500.0,0.00047945,30]
[314613323,1708451445224,-3850.79,0.00047945,30]
[314613324,1708451445234,-595.68,0.00047945,30]
[314613325,1708451445244,-500.0,0.00047945,30]
[314613326,1708451445254,-492.33516674,0.00047945,30]
[314613327,1708451445263,-751.06,0.00047945,30]
[314613328,1708451445273,-514.4,0.00047945,30]
[314613329,1708451445283,-500.0,0.00047945,30]
[314613330,1708451445295,-500.0,0.00047945,30]
[314613331,1708451445304,-945.17,0.00047945,30]
[314613332,1708451445314,-500.0,0.00047945,30]
[314613333,1708451445323,-500.0,0.00047945,30]
[314613334,1708451445333,-740.46,0.00047945,30]
[314613335,1708451445343,-500.0,0.00047945,30]
[314613336,1708451445352,-500.0,0.00047945,30]
[314613337,1708451445362,-1034.86,0.00047945,30]
[314613338,1708451445371,-630.3,0.00047945,30]
[314613339,1708451445381,-500.0,0.00047945,30]
[314613340,1708451445391,-500.0,0.00047945,30]
[314613341,1708451445400,-500.0,0.00047945,30]
[314613342,1708451445410,-500.0,0.00047945,30]
[314613343,1708451445420,-500.0,0.00047945,30]
[314613344,1708451445430,-500.0,0.00047945,30]
[314613345,1708451445439,-500.0,0.00047945,30]
[314613346,1708451445449,-718.94,0.00047945,30]
[314613347,1708451445458,-500.0,0.00047945,30]
[314613348,1708451445467,-500.0,0.00047945,30]
[314613349,1708451445477,-7123.36,0.00047945,30]
[314613350,1708451445486,-552.57,0.00047945,30]
[314613351,1708451445495,-1374.27,0.00047945,30]
[314613352,1708451445504,-624.37,0.00047945,30]
[314613353,1708451445514,-500.0,0.00047945,30]
[314613354,1708451445523,-500.0,0.00047945,30]
[314613355,1708451445532,-500.0,0.00047945,30]
[314613356,1708451445543,-787.19,0.00047945,30]
[314613357,1708451445553,-500.0,0.00047945,30]
[314613358,1708451445562,-555.41,0.00047945,30]
[314613359,1708451445571,-1955.71,0.00047945,30]
[314613360,1708451445580,-286.86667263,0.00047945,7]
[314613361,1708451445590,-500.0,0.00047945,30]
[314613362,1708451445600,-500.0,0.00047945,30]
[314613363,1708451445609,-579.77,0.00047945,30]
[314613364,1708451445620,-500.0,0.00047945,14]
[314613365,1708451445632,-500.0,0.00047945,30]
[314613366,1708451445644,-176.9,0.00047945,2]
[314613367,1708451445655,-200.0,0.00047987,71]
[314613368,1708451445665,-200.0,0.00047987,69]
[314613369,1708451445676,-397.23596142,0.00048,30]
[314613370,1708451445687,-1129.0,0.00048,30]
[314613371,1708451445697,-1791.78791859,0.00048,30]
[314613372,1708451445707,-1000.0,0.00048,30]
[314613373,1708451445716,-156.38250779,0.00048017,30]
[314613374,1708451445726,-156.0,0.00048023,30]
[314613375,1708451445735,-154.0,0.00048023,30]
[314613376,1708451445745,-150.0,0.00048026,30]
[314613377,1708451445755,-1460.579,0.00048026,30]
[314613378,1708451445764,-1211.90449823,0.00048057,13]
[314613379,1708451445773,-1929.61367732,0.0004806,10]
[314613380,1708451445783,-275.75643064,0.00048064,30]
[314613381,1708451445792,-152.14113687,0.00048113,30]
[314613382,1708451445801,-150.39788916,0.00048122,30]
[314613383,1708451445810,-156.38250779,0.00048141,30]
[314613384,1708451445819,-152.14113687,0.00048142,30]
[314613385,1708451445829,-500.0,0.00048219,30]
[314613386,1708451445839,-171.71,0.00048219,30]
[314613387,1708451445848,-500.0,0.00048219,30]
[314613388,1708451445858,-653.11,0.00048219,30]
[314613389,1708451445867,-500.0,0.00048219,30]
[314613390,1708451445879,-500.0,0.00048219,30]
[314613391,1708451445888,-593.63218861,0.00048219,30]
[314613392,1708451445898,-500.0,0.00048219,30]
[314613393,1708451445907,-500.0,0.00048219,30]
[314613394,1708451445916,-500.0,0.00048219,30]
[314613395,1708451445926,-500.0,0.00048219,30]
[314613396,1708451445935,-500.0,0.00048219,30]
[314613397,1708451445945,-500.0,0.00048219,30]
[314613398,1708451445954,-500.51,0.00048219,30]
[314613399,1708451445963,-500.0,0.00048219,30]
[314613400,1708451445973,-500.0,0.00048219,30]
[314613401,1708451445983,-331.89185713,0.00048219,30]
[314613402,1708451445992,-500.0,0.00048219,30]
[314613403,1708451446002,-500.0,0.00048219,30]
[314613404,1708451446011,-494.84,0.00048219,30]
[314613405,1708451446021,-500.0,0.00048219,30]
[314613406,1708451446030,-500.0,0.00048219,30]
[314613407,1708451446039,-500.0,0.00048219,30]
[314613408,1708451446050,-500.0,0.00048219,30]
[314613409,1708451446060,-500.0,0.00048219,30]
[314613410,1708451446069,-500.0,0.00048219,30]
[314613411,1708451446078,-2372.15,0.00048219,30]
[314613412,1708451446088,-500.0,0.00048219,30]
[314613413,1708451446098,-500.0,0.00048219,30]
[314613415,1708451446107,-608.6,0.00048219,30]
[314613417,1708451446117,-500.0,0.00048219,30]
[314613419,1708451446126,-500.0,0.00048219,30]
[314613421,1708451446136,-500.0,0.00048219,30]
[314613423,1708451446145,-578.52673971,0.00048219,30]
[314613424,1708451446155,-573.44257209,0.00048219,30]
[314613427,1708451446165,-500.0,0.00048219,30]
[314613428,1708451446175,-500.0,0.00048219,30]
[314613429,1708451446185,-500.0,0.00048219,30]
[314613430,1708451446195,-500.0,0.00048219,30]
[314613431,1708451446204,-500.0,0.00048219,30]
[314613432,1708451446214,-500.0,0.00048219,30]
[314613433,1708451446224,-3850.79,0.00048219,30]